[Event "CZE-ch U16 2020"]
[Site "Kouty nad Desnou"]
[Date "2020.03.07"]
[Round "1.8"]
[White "Janouch, Jachym Stepan"]
[Black "Barak, David"]
[Result "1-0"]
[ECO "B23"]
[WhiteElo "1888"]
[BlackElo "2114"]
[Annotator "ChessBase"]
[PlyCount "79"]
[EventDate "2020.03.07"]
[EventCountry "CZE"]
[SourceTitle "playchess.com"]
[Source "ChessBase"]
[SourceQuality "1"]
[TimeControl "5400+30"]

1. e4 {[%emt 0:00:18]} c5 {[%emt 0:00:00]} 2. Nc3 {[%emt 0:00:53]} a6 {[%emt 0:00:13]} 3. Nf3 {[%emt 0:00:21]} Nc6 {[%emt 0:00:32]} 4. d4 {[%emt 0:00:21]} cxd4 {[%emt 0:01:37]} 5. Nxd4 {[%emt 0:00:08]} e5 {[%emt 0:01:12]} 6. Nde2 {[%emt 0:02:18]} Bc5 {[%emt 0:09:01]} 7. g3 {[%emt 0:05:15]} Qb6 {[%emt 0:12:40]} 8. Be3 {[%emt 0:07:49]} Bxe3 {[%emt 0:02:34]} 9. fxe3 {[%emt 0:00:08]} Nf6 {[%emt 0:00:17]} 10. Qd2 {[%emt 0:04:22]} Qxb2 {[%emt 0:11:18]} 11. Rb1 {[%emt 0:02:46]} Qa3 {[%emt 0:00:07]} 12. Bg2 {[%emt 0:03:18]} d6 {[%emt 0:10:14]} 13. O-O {[%emt 0:04:26]} Be6 {[%emt 0:00:51]} 14. Nd5 {[%emt 0:10:38]} Bxd5 {[%emt 0:06:33]} 15. exd5 {[%emt 0:00:10]} Na5 {[%emt 0:01:41]} 16. Rb4 {[%emt 0:12:49]} b5 {[%emt 0:05:12]} 17. g4 {[%emt 0:09:11]} Nc4 {[%emt 0:12:11]} 18. Rxc4 {[%emt 0:00:31]} bxc4 {[%emt 0:00:05]} 19. g5 {[%emt 0:01:01]} Ng8 {[%emt 0:00:58]} 20. Ng3 {[%emt 0:01:04]} Ne7 {[%emt 0:01:43]} 21. h4 {[%emt 0:04:40]} Rb8 {[%emt 0:08:29]} 22. Qf2 {[%emt 0:01:08]} O-O {[%emt 0:02:11]} 23. Be4 {[%emt 0:03:31]} f5 {[%emt 0:02:22]} 24. Bxf5 {[%emt 0:04:18]} Nxf5 {[%emt 0:02:42]} 25. Nxf5 {[%emt 0:00:16]} g6 {[%emt 0:00:38]} 26. Nh6+ {[%emt 0:01:49]} Kg7 {[%emt 0:00:06]} 27. Nf7 {[%emt 0:00:14]} h5 {[%emt 0:06:43]} 28. gxh6+ {[%emt 0:04:31]} Kh7 {[%emt 0:00:11]} 29. Kh2 {[%emt 0:01:05]} Qb2 {[%emt 0:01:32]} 30. h5 {[%emt 0:05:35]} Rg8 {[%emt 0:00:31]} 31. Ng5+ {[%emt 0:02:03]} Kxh6 {[%emt 0:00:06]} 32. hxg6 {[%emt 0:00:17]} Rh8 {[%emt 0:00:54]} 33. Nf7+ {[%emt 0:01:12]} Kg7+ {[%emt 0:00:32]} 34. Kg3 {[%emt 0:01:25]} e4 {[%emt 0:00:26]} 35. Nxh8 {[%emt 0:01:33]} Rxh8 {[%emt 0:00:36]} 36. Qf7+ {[%emt 0:00:22]} Kh6 {[%emt 0:00:05]} 37. Qf4+ {[%emt 0:01:55]} Kg7 {[%emt 0:00:15]} 38. Qf7+ {[%emt 0:00:08]} Kh6 {[%emt 0:00:06]} 39. Rh1+ {[%emt 0:00:56]} Kg5 {[%emt 0:00:06]} 40. g7 {[%emt 0:01:30]} 1-0

[Event "CZE-ch U16 2020"]
[Site "Kouty nad Desnou"]
[Date "2020.03.07"]
[Round "1.9"]
[White "Jun, Rudolf Jr."]
[Black "Jirousek, Jan"]
[Result "1-0"]
[ECO "C48"]
[WhiteElo "2104"]
[BlackElo "1887"]
[Annotator "ChessBase"]
[PlyCount "135"]
[EventDate "2020.03.07"]
[EventCountry "CZE"]
[SourceTitle "playchess.com"]
[Source "ChessBase"]
[SourceQuality "1"]
[TimeControl "5400+30"]

1. e4 {[%emt 0:00:00]} e5 {[%emt 0:00:00]} 2. Nf3 {[%emt 0:00:26]} Nf6 {[%emt 0:00:10]} 3. Nc3 {[%emt 0:05:06]} Nc6 {[%emt 0:00:43]} 4. Bb5 {[%emt 0:05:34]} Bc5 {[%emt 0:11:14]} 5. O-O {[%emt 0:04:46]} d6 {[%emt 0:05:51]} 6. d4 {[%emt 0:07:12]} exd4 {[%emt 0:01:16]} 7. Nxd4 {[%emt 0:00:38]} Bxd4 {[%emt 0:03:42]} 8. Qxd4 {[%emt 0:00:58]} O-O {[%emt 0:05:18]} 9. Bxc6 {[%emt 0:06:18]} bxc6 {[%emt 0:00:12]} 10. Bg5 {[%emt 0:00:40]} c5 {[%emt 0:08:15]} 11. Qd2 {[%emt 0:03:04]} Bb7 {[%emt 0:09:57]} 12. Rfe1 {[%emt 0:01:44]} Re8 {[%emt 0:07:40]} 13. f3 {[%emt 0:02:55]} h6 {[%emt 0:10:41]} 14. Bh4 {[%emt 0:02:36]} g5 {[%emt 0:08:15]} 15. Bf2 {[%emt 0:01:44]} Kh7 {[%emt 0:01:54]} 16. Rad1 {[%emt 0:03:52]} Qe7 {[%emt 0:05:20]} 17. Qd3 {[%emt 0:15:15]} Kh8 {[%emt 0:03:00]} 18. Qd2 {[%emt 0:02:11]} Kh7 {[%emt 0:00:45]} 19. Qd3 {[%emt 0:00:24]} Kh8 {[%emt 0:00:10]} 20. b3 {[%emt 0:00:19]} a5 {[%emt 0:02:40]} 21. a4 {[%emt 0:00:47]} Nd7 {[%emt 0:06:28]} 22. Nd5 {[%emt 0:08:22]} Bxd5 {[%emt 0:02:01]} 23. exd5 {[%emt 0:00:11]} Ne5 {[%emt 0:05:06]} 24. Qf5 {[%emt 0:00:28]} f6 {[%emt 0:00:37]} 25. f4 {[%emt 0:00:59]} gxf4 {[%emt 0:00:22]} 26. Bh4 {[%emt 0:01:15]} Rf8 {[%emt 0:00:41]} 27. Qxf4 {[%emt 0:01:07]} Qg7 {[%emt 0:00:26]} 28. Rf1 {[%emt 0:03:36]} f5 {[%emt 0:00:36]} 29. Be1 {[%emt 0:02:45]} Qg5 {[%emt 0:00:32]} 30. Bc3 {[%emt 0:00:47]} Qxf4 {[%emt 0:00:29]} 31. Rxf4 {[%emt 0:00:07]} Kh7 {[%emt 0:00:22]} 32. Bxe5 {[%emt 0:00:08]} dxe5 {[%emt 0:00:06]} 33. Rc4 {[%emt 0:00:03]} e4 {[%emt 0:01:01]} 34. Rxc5 {[%emt 0:00:48]} Rf7 {[%emt 0:00:16]} 35. Kf2 {[%emt 0:00:40]} Ra6 {[%emt 0:00:48]} 36. g3 {[%emt 0:01:19]} Kg6 {[%emt 0:00:20]} 37. Ke3 {[%emt 0:00:44]} Kg5 {[%emt 0:00:16]} 38. Rf1 {[%emt 0:01:00]} h5 {[%emt 0:00:47]} 39. Rf4 {[%emt 0:01:13]} Kg6 {[%emt 0:00:34]} 40. Rf1 {[%emt 0:04:00]} Kg5 {[%emt 0:00:19]} 41. Rc4 {[%emt 0:00:54]} Rd7 {[%emt 0:00:00]} 42. Rd1 {[%emt 0:00:00]} Kf6 {[%emt 0:00:00]} 43. Rc5 {[%emt 0:00:00]} h4 {[%emt 0:00:00]} 44. Rf1 {[%emt 0:00:00]} Rad6 {[%emt 0:00:00]} 45. Rxa5 {[%emt 0:00:00]} hxg3 {[%emt 0:00:23]} 46. hxg3 {[%emt 0:00:00]} Rg7 {[%emt 0:01:09]} 47. Kd4 {[%emt 0:00:00]} Rxg3 {[%emt 0:00:32]} 48. Rc5 {[%emt 0:00:00]} Rg7 {[%emt 0:01:52]} 49. a5 {[%emt 0:00:00]} Rgd7 {[%emt 0:00:41]} 50. b4 {[%emt 0:00:00]} c6 {[%emt 0:00:32]} 51. c4 {[%emt 0:00:00]} cxd5 {[%emt 0:00:32]} 52. Rxd5 {[%emt 0:00:00]} Rxd5+ {[%emt 0:00:18]} 53. cxd5 {[%emt 0:00:00]} Re7 {[%emt 0:00:42]} 54. a6 {[%emt 0:00:00]} e3 {[%emt 0:00:27]} 55. d6 {[%emt 0:00:00]} e2 {[%emt 0:00:38]} 56. Re1 {[%emt 0:00:00]} Re8 {[%emt 0:00:28]} 57. d7 {[%emt 0:00:11]} Rd8 {[%emt 0:00:11]} 58. Rxe2 {[%emt 0:00:12]} Rxd7+ {[%emt 0:00:06]} 59. Kc5 {[%emt 0:00:06]} f4 {[%emt 0:01:00]} 60. Kc6 {[%emt 0:00:30]} f3 {[%emt 0:00:46]} 61. Rf2 {[%emt 0:00:56]} Ke6 {[%emt 0:00:25]} 62. Rxf3 {[%emt 0:00:40]} Rd6+ {[%emt 0:00:17]} 63. Kb5 {[%emt 0:00:05]} Rd5+ {[%emt 0:00:07]} 64. Ka4 {[%emt 0:00:06]} Rd6 {[%emt 0:00:15]} 65. Ka5 {[%emt 0:00:08]} Rd2 {[%emt 0:00:41]} 66. b5 {[%emt 0:00:33]} Kd6 {[%emt 0:00:23]} 67. Kb6 {[%emt 0:00:10]} Re2 {[%emt 0:00:31]} 68. Rd3+ {[%emt 0:00:15] Kd5} 1-0

[Event "CZE-ch U16 2020"]
[Site "Kouty nad Desnou"]
[Date "2020.03.07"]
[Round "1.10"]
[White "Blaha, Marek"]
[Black "Neumann, Filip"]
[Result "1/2-1/2"]
[ECO "B40"]
[WhiteElo "1836"]
[BlackElo "2084"]
[Annotator "ChessBase"]
[PlyCount "61"]
[EventDate "2020.03.07"]
[EventCountry "CZE"]
[SourceTitle "playchess.com"]
[Source "ChessBase"]
[SourceQuality "1"]
[TimeControl "5400+30"]

1. e4 {[%emt 0:00:00]} c5 {[%emt 0:00:00]} 2. Nf3 {[%emt 0:00:00]} e6 {[%emt 0:00:00]} 3. d4 {[%emt 0:00:00]} cxd4 {[%emt 0:00:07]} 4. Nxd4 {[%emt 0:00:00]} Nf6 {[%emt 0:00:07]} 5. Bd3 {[%emt 0:00:35]} Nc6 {[%emt 0:00:08]} 6. Nb3 {[%emt 0:03:33]} d5 {[%emt 0:00:46]} 7. exd5 {[%emt 0:00:32]} Nxd5 {[%emt 0:00:22]} 8. O-O {[%emt 0:00:36]} Bd6 {[%emt 0:00:35]} 9. N1d2 {[%emt 0:05:13]} Ndb4 {[%emt 0:03:35]} 10. Nf3 {[%emt 0:01:52]} Nxd3 {[%emt 0:01:26]} 11. Qxd3 {[%emt 0:00:03]} Bc7 {[%emt 0:01:37]} 12. Qxd8+ {[%emt 0:00:55]} Kxd8 {[%emt 0:00:10]} 13. Be3 {[%emt 0:00:28]} b6 {[%emt 0:00:37]} 14. Rad1+ {[%emt 0:00:30]} Ke7 {[%emt 0:00:05]} 15. c3 {[%emt 0:00:37]} Ba6 {[%emt 0:00:34]} 16. Rfe1 {[%emt 0:01:11]} h6 {[%emt 0:04:10]} 17. Nbd4 {[%emt 0:01:20]} Nxd4 {[%emt 0:00:37]} 18. Nxd4 {[%emt 0:00:54]} Bb7 {[%emt 0:02:49]} 19. Nf5+ {[%emt 0:10:42]} Kf6 {[%emt 0:01:47]} 20. Rd7 {[%emt 0:08:33]} Rac8 {[%emt 0:04:14]} 21. Bd4+ {[%emt 0:16:58]} e5 {[%emt 0:03:53]} 22. Rxc7 {[%emt 0:06:43]} Rxc7 {[%emt 0:00:01]} 23. Bxe5+ {[%emt 0:00:02]} Kxf5 {[%emt 0:00:17]} 24. Bxc7 {[%emt 0:00:27]} Bc6 {[%emt 0:01:08]} 25. f3 {[%emt 0:03:31]} Re8 {[%emt 0:00:21]} 26. Rxe8 {[%emt 0:00:18]} Bxe8 {[%emt 0:00:06]} 27. Bb8 {[%emt 0:00:20]} a6 {[%emt 0:00:08]} 28. Ba7 {[%emt 0:00:05]} b5 {[%emt 0:00:04]} 29. Bd4 {[%emt 0:00:30]} g6 {[%emt 0:00:51]} 30. Kf2 {[%emt 0:00:01]} h5 {[%emt 0:00:22]} 31. a3 {[%emt 0:00:26]} 1/2-1/2

[Event "CZE-ch U16 2020"]
[Site "Kouty nad Desnou"]
[Date "2020.03.07"]
[Round "1.11"]
[White "Mach, Petr"]
[Black "Vecera, Dominik"]
[Result "1-0"]
[ECO "B36"]
[WhiteElo "2045"]
[BlackElo "1814"]
[Annotator "ChessBase"]
[PlyCount "77"]
[EventDate "2020.03.07"]
[EventCountry "CZE"]
[SourceTitle "playchess.com"]
[Source "ChessBase"]
[SourceQuality "1"]
[TimeControl "5400+30"]

1. e4 {[%emt 0:00:00]} c5 {[%emt 0:00:00]} 2. Nf3 {[%emt 0:00:00]} g6 {[%emt 0:00:00]} 3. d4 {[%emt 0:00:00]} cxd4 {[%emt 0:00:00]} 4. Nxd4 {[%emt 0:00:00]} Nc6 {[%emt 0:00:00]} 5. c4 {[%emt 0:00:03]} Nf6 {[%emt 0:00:10]} 6. Nc3 {[%emt 0:02:16]} d6 {[%emt 0:00:25]} 7. f3 {[%emt 0:01:26]} Nxd4 {[%emt 0:02:58]} 8. Qxd4 {[%emt 0:01:57]} Bg7 {[%emt 0:01:43]} 9. Be3 {[%emt 0:00:13]} O-O {[%emt 0:01:09]} 10. Qd2 {[%emt 0:00:23]} Be6 {[%emt 0:03:43]} 11. Rc1 {[%emt 0:01:02]} Qa5 {[%emt 0:03:20]} 12. b3 {[%emt 0:00:09]} Rfc8 {[%emt 0:03:21]} 13. g4 {[%emt 0:00:34]} a6 {[%emt 0:09:30]} 14. Na4 {[%emt 0:00:06]} Qxd2+ {[%emt 0:00:45]} 15. Kxd2 {[%emt 0:00:09]} Nd7 {[%emt 0:04:11]} 16. h4 {[%emt 0:00:07]} Rc6 {[%emt 0:11:47]} 17. h5 {[%emt 0:03:21]} Ne5 {[%emt 0:05:56]} 18. Be2 {[%emt 0:11:57]} Rd8 {[%emt 0:19:35]} 19. Nc3 {[%emt 0:12:07]} Rf8 {[%emt 0:09:02]} 20. Nd5 {[%emt 0:08:16]} Bxd5 {[%emt 0:01:39]} 21. cxd5 {[%emt 0:00:41]} Rcc8 {[%emt 0:01:14]} 22. Bg5 {[%emt 0:07:29]} f6 {[%emt 0:06:41]} 23. Be3 {[%emt 0:00:43]} f5 {[%emt 0:03:59]} 24. Rxc8 {[%emt 0:02:21]} Rxc8 {[%emt 0:00:01]} 25. exf5 {[%emt 0:01:43]} gxf5 {[%emt 0:01:24]} 26. gxf5 {[%emt 0:00:12]} h6 {[%emt 0:04:05]} 27. Rg1 {[%emt 0:05:28]} Kh8 {[%emt 0:01:41]} 28. f6 {[%emt 0:02:45]} exf6 {[%emt 0:00:58]} 29. f4 {[%emt 0:00:58]} Nf7 {[%emt 0:02:47]} 30. Bg4 {[%emt 0:03:58]} Rf8 {[%emt 0:01:04]} 31. Bf5 {[%emt 0:00:47]} Nd8 {[%emt 0:01:01]} 32. Rc1 {[%emt 0:00:54]} Kg8 {[%emt 0:00:47]} 33. Rc7 {[%emt 0:02:25]} Rf7 {[%emt 0:00:48]} 34. Rc8 {[%emt 0:00:06]} Rf8 {[%emt 0:00:05]} 35. Bb6 {[%emt 0:01:01]} Nf7 {[%emt 0:00:23]} 36. Rxf8+ {[%emt 0:00:09]} Kxf8 {[%emt 0:00:54]} 37. Bc8 {[%emt 0:00:05]} Ke7 {[%emt 0:00:41]} 38. Bxb7 {[%emt 0:00:07]} f5 {[%emt 0:00:25]} 39. Bxa6 {[%emt 0:00:09]} 1-0

[Event "CZE-ch U16 2020"]
[Site "Kouty nad Desnou"]
[Date "2020.03.07"]
[Round "1.12"]
[White "Kolar, Jan"]
[Black "Ret, Adam Josef"]
[Result "1/2-1/2"]
[ECO "B07"]
[WhiteElo "1760"]
[BlackElo "1999"]
[Annotator "ChessBase"]
[PlyCount "60"]
[EventDate "2020.03.07"]
[EventCountry "CZE"]
[SourceTitle "playchess.com"]
[Source "ChessBase"]
[SourceQuality "1"]
[TimeControl "5400+30"]

1. e4 {[%emt 0:00:00]} d6 {[%emt 0:00:00]} 2. d4 {[%emt 0:00:00]} Nf6 {[%emt 0:00:00]} 3. Nc3 {[%emt 0:00:15]} e5 {[%emt 0:00:21]} 4. Nge2 {[%emt 0:03:35]} Nc6 {[%emt 0:02:07]} 5. f3 {[%emt 0:01:28]} g6 {[%emt 0:05:16]} 6. Be3 {[%emt 0:01:42]} Bg7 {[%emt 0:02:17]} 7. Qd2 {[%emt 0:02:06]} exd4 {[%emt 0:07:46]} 8. Nxd4 {[%emt 0:00:19]} Nxd4 {[%emt 0:02:05]} 9. Bxd4 {[%emt 0:00:42]} Be6 {[%emt 0:01:09]} 10. O-O-O {[%emt 0:08:02]} O-O {[%emt 0:16:23]} 11. g4 {[%emt 0:04:17]} Qe7 {[%emt 0:09:49]} 12. h4 {[%emt 0:08:31]} h5 {[%emt 0:04:07]} 13. Nd5 {[%emt 0:13:49]} Bxd5 {[%emt 0:04:42]} 14. exd5 {[%emt 0:00:56]} Rac8 {[%emt 0:16:16]} 15. gxh5 {[%emt 0:11:42]} Nxh5 {[%emt 0:01:23]} 16. Bh3 {[%emt 0:01:12]} Rce8 {[%emt 0:01:23]} 17. Bg4 {[%emt 0:02:02]} Bxd4 {[%emt 0:04:20]} 18. Qxd4 {[%emt 0:01:09]} Qe3+ {[%emt 0:01:01]} 19. Qxe3 {[%emt 0:09:15]} Rxe3 {[%emt 0:00:11]} 20. Bxh5 {[%emt 0:07:51]} gxh5 {[%emt 0:00:07]} 21. Rhg1+ {[%emt 0:00:17]} Kh7 {[%emt 0:01:21]} 22. Rg5 {[%emt 0:00:33]} Rxf3 {[%emt 0:05:18]} 23. Rxh5+ {[%emt 0:00:21]} Kg6 {[%emt 0:00:06]} 24. Rg5+ {[%emt 0:00:42]} Kf6 {[%emt 0:00:16]} 25. Rd4 {[%emt 0:02:34]} Rh8 {[%emt 0:02:47]} 26. Rg2 {[%emt 0:00:56]} Rh5 {[%emt 0:01:42]} 27. c3 {[%emt 0:01:26]} Ke7 {[%emt 0:05:50]} 28. Kc2 {[%emt 0:02:18]} Rff5 {[%emt 0:00:24]} 29. c4 {[%emt 0:07:35]} Kd7 {[%emt 0:02:09]} 30. Re4 {[%emt 0:02:03]} Re5 {[%emt 0:01:18]} 1/2-1/2

[Event "CZE-ch U16 2020"]
[Site "Kouty nad Desnou"]
[Date "2020.03.08"]
[Round "2.1"]
[White "Jun, Rudolf Jr."]
[Black "Vojta, Jakub"]
[Result "1/2-1/2"]
[ECO "B40"]
[WhiteElo "2104"]
[BlackElo "2214"]
[Annotator "ChessBase"]
[PlyCount "62"]
[EventDate "2020.03.07"]
[EventCountry "CZE"]
[SourceTitle "playchess.com"]
[Source "ChessBase"]
[SourceQuality "1"]
[TimeControl "5400+30"]

1. e4 {[%emt 0:00:00]} c5 {[%emt 0:00:00]} 2. Nf3 {[%emt 0:00:56]} e6 {[%emt 0:00:00]} 3. c4 {[%emt 0:07:42]} Nc6 {[%emt 0:00:00]} 4. Nc3 {[%emt 0:01:49]} Nd4 {[%emt 0:00:00]} 5. Be2 {[%emt 0:13:23]} Ne7 {[%emt 0:02:12]} 6. O-O {[%emt 0:02:20]} Nec6 {[%emt 0:01:27]} 7. d3 {[%emt 0:03:18]} g6 {[%emt 0:02:00]} 8. Nxd4 {[%emt 0:02:25]} Nxd4 {[%emt 0:10:46]} 9. Be3 {[%emt 0:01:02]} Bg7 {[%emt 0:00:38]} 10. Rb1 {[%emt 0:06:44]} O-O {[%emt 0:02:56]} 11. a3 {[%emt 0:01:37]} b6 {[%emt 0:01:34]} 12. Qd2 {[%emt 0:03:37]} Re8 {[%emt 0:02:58]} 13. b4 {[%emt 0:05:00]} d6 {[%emt 0:00:35]} 14. Kh1 {[%emt 0:02:04]} Bb7 {[%emt 0:01:20]} 15. Bd1 {[%emt 0:05:29]} Qe7 {[%emt 0:04:03]} 16. Re1 {[%emt 0:03:24]} Rac8 {[%emt 0:05:02]} 17. Ba4 {[%emt 0:01:40]} Bc6 {[%emt 0:07:57]} 18. Bxc6 {[%emt 0:00:59]} Rxc6 {[%emt 0:01:21]} 19. Ne2 {[%emt 0:07:15]} Nxe2 {[%emt 0:02:48]} 20. Qxe2 {[%emt 0:00:08]} Rc7 {[%emt 0:05:39]} 21. Qd2 {[%emt 0:06:17]} Qd7 {[%emt 0:01:43]} 22. Red1 {[%emt 0:02:21]} Rec8 {[%emt 0:02:29]} 23. Qa2 {[%emt 0:02:37]} Qe7 {[%emt 0:02:41]} 24. Re1 {[%emt 0:01:12]} Re8 {[%emt 0:01:05]} 25. Qd2 {[%emt 0:00:23]} Qd7 {[%emt 0:00:25]} 26. Qc2 {[%emt 0:00:58]} Rec8 {[%emt 0:00:57]} 27. Qb3 {[%emt 0:00:27]} Qc6 {[%emt 0:01:34]} 28. Rec1 {[%emt 0:01:26]} Qd7 {[%emt 0:00:42]} 29. Re1 {[%emt 0:01:02]} Qc6 {[%emt 0:00:21]} 30. Rec1 {[%emt 0:00:34]} Qd7 {[%emt 0:00:05]} 31. Re1 {[%emt 0:01:17]} Qc6 {[%emt 0:00:04]} 1/2-1/2

[Event "CZE-ch U16 2020"]
[Site "Kouty nad Desnou"]
[Date "2020.03.08"]
[Round "2.2"]
[White "Frank, Adam"]
[Black "Mach, Petr"]
[Result "1-0"]
[ECO "B92"]
[WhiteElo "2196"]
[BlackElo "2045"]
[Annotator "ChessBase"]
[PlyCount "43"]
[EventDate "2020.03.07"]
[EventCountry "CZE"]
[SourceTitle "playchess.com"]
[Source "ChessBase"]
[SourceQuality "1"]
[TimeControl "5400+30"]

1. e4 {[%emt 0:00:00]} c5 {[%emt 0:00:00]} 2. Nf3 {[%emt 0:00:00]} d6 {[%emt 0:00:00]} 3. d4 {[%emt 0:00:00]} cxd4 {[%emt 0:00:00]} 4. Nxd4 {[%emt 0:00:00]} Nf6 {[%emt 0:00:02]} 5. Nc3 {[%emt 0:00:00]} a6 {[%emt 0:00:05]} 6. Be2 {[%emt 0:01:29]} Nbd7 {[%emt 0:00:18]} 7. Bg5 {[%emt 0:04:30]} h6 {[%emt 0:08:21]} 8. Bh4 {[%emt 0:04:45]} g5 {[%emt 0:05:17]} 9. Bg3 {[%emt 0:00:04]} e5 {[%emt 0:00:13]} 10. Nb3 {[%emt 0:07:41]} b5 {[%emt 0:03:09]} 11. h4 {[%emt 0:01:55]} Bb7 {[%emt 0:13:39]} 12. hxg5 {[%emt 0:06:22]} Nxe4 {[%emt 0:00:11]} 13. Nxe4 {[%emt 0:00:11]} Bxe4 {[%emt 0:00:06]} 14. Bf3 {[%emt 0:00:06]} Bxf3 {[%emt 0:01:44]} 15. Qxf3 {[%emt 0:00:05]} Rc8 {[%emt 0:01:57]} 16. O-O-O {[%emt 0:10:25]} Qxg5+ {[%emt 0:05:54]} 17. Kb1 {[%emt 0:00:06]} Qd8 {[%emt 0:13:28]} 18. Rhe1 {[%emt 0:20:07]} Bg7 {[%emt 0:16:51]} 19. Nd4 {[%emt 0:03:07]} O-O {[%emt 0:05:57]} 20. Nf5 {[%emt 0:00:11]} Qf6 {[%emt 0:01:50]} 21. Bh4 {[%emt 0:01:41]} Qg6 {[%emt 0:01:57]} 22. Ne7+ 1-0

[Event "CZE-ch U16 2020"]
[Site "Kouty nad Desnou"]
[Date "2020.03.08"]
[Round "2.3"]
[White "Vantuch, Lucian"]
[Black "Placer, Sebastian"]
[Result "1/2-1/2"]
[ECO "D00"]
[WhiteElo "1891"]
[BlackElo "2189"]
[Annotator "ChessBase"]
[PlyCount "111"]
[EventDate "2020.03.07"]
[EventCountry "CZE"]
[SourceTitle "playchess.com"]
[Source "ChessBase"]
[SourceQuality "1"]
[TimeControl "5400+30"]

1. d4 {[%emt 0:00:00]} d5 {[%emt 0:00:00]} 2. Nd2 {[%emt 0:00:00]} e6 {[%emt 0:00:00]} 3. e4 {[%emt 0:00:00]} a6 {[%emt 0:00:21]} 4. Bd3 {[%emt 0:01:21]} c5 {[%emt 0:00:17]} 5. c3 {[%emt 0:00:06]} cxd4 {[%emt 0:00:48]} 6. cxd4 {[%emt 0:00:08]} dxe4 {[%emt 0:00:31]} 7. Nxe4 {[%emt 0:00:11]} Bb4+ {[%emt 0:00:33]} 8. Nc3 {[%emt 0:00:22]} Nc6 {[%emt 0:01:17]} 9. Nf3 {[%emt 0:01:06]} Nf6 {[%emt 0:00:21]} 10. O-O {[%emt 0:00:35]} O-O {[%emt 0:01:09]} 11. Bc2 {[%emt 0:06:07]} Be7 {[%emt 0:01:41]} 12. a3 {[%emt 0:01:11]} b5 {[%emt 0:05:56]} 13. Re1 {[%emt 0:06:51]} Bb7 {[%emt 0:05:23]} 14. Qd3 {[%emt 0:02:06]} g6 {[%emt 0:14:38]} 15. Bg5 {[%emt 0:05:03]} b4 {[%emt 0:13:39]} 16. Na4 {[%emt 0:07:48]} Nd5 {[%emt 0:15:38]} 17. Bxe7 {[%emt 0:03:55]} Ncxe7 {[%emt 0:04:09]} 18. Nc5 {[%emt 0:02:23]} Bc6 {[%emt 0:14:50]} 19. Qd2 {[%emt 0:04:06]} Kh8 {[%emt 0:05:50]} 20. axb4 {[%emt 0:03:58]} Bb5 {[%emt 0:03:55]} 21. Qh6 {[%emt 0:03:08]} Ng8 {[%emt 0:00:11]} 22. Qd2 {[%emt 0:06:32]} Qb6 {[%emt 0:01:05]} 23. Ne5 {[%emt 0:04:19]} Qd6 {[%emt 0:00:44]} 24. Ba4 {[%emt 0:00:33]} Kg7 {[%emt 0:02:50]} 25. Ra3 {[%emt 0:04:23]} Nc7 {[%emt 0:01:20]} 26. Ne4 {[%emt 0:12:03]} Qe7 {[%emt 0:00:45]} 27. Rea1 {[%emt 0:04:55]} Rfb8 {[%emt 0:01:57]} 28. Nc6 {[%emt 0:01:11]} Bxc6 {[%emt 0:00:02]} 29. Bxc6 {[%emt 0:00:06]} Ra7 {[%emt 0:00:00]} 30. Nc5 {[%emt 0:00:46]} Rb6 {[%emt 0:00:38]} 31. b5 {[%emt 0:00:59]} Nxb5 {[%emt 0:00:26]} 32. Bxb5 {[%emt 0:00:05]} Rxb5 {[%emt 0:00:05]} 33. Rxa6 {[%emt 0:00:10]} Rxa6 {[%emt 0:00:15]} 34. Rxa6 {[%emt 0:00:07]} Nf6 {[%emt 0:00:07]} 35. h3 {[%emt 0:03:06]} Nd5 {[%emt 0:00:24]} 36. Qe2 {[%emt 0:01:56]} Rb6 {[%emt 0:01:53]} 37. Rxb6 {[%emt 0:03:02]} Nxb6 {[%emt 0:00:01]} 38. Qe5+ {[%emt 0:00:07]} Kh6 {[%emt 0:00:25]} 39. Ne4 {[%emt 0:02:26]} Nd5 {[%emt 0:00:56]} 40. f4 {[%emt 0:05:42]} f6 {[%emt 0:02:06]} 41. Qb8 {[%emt 0:00:10]} Kg7 {[%emt 0:01:40]} 42. Nc5 {[%emt 0:02:37]} h5 {[%emt 0:00:00]} 43. g3 {[%emt 0:00:00]} Ne3 {[%emt 0:00:00]} 44. Qd8 {[%emt 0:00:00]} Kf7 {[%emt 0:00:00]} 45. Qh8 {[%emt 0:00:00]} Nf5 {[%emt 0:00:00]} 46. Ne4 {[%emt 0:00:00]} Ng7 {[%emt 0:00:00]} 47. Qb8 {[%emt 0:00:00]} Nf5 {[%emt 0:00:00]} 48. Qh8 {[%emt 0:04:12]} Ng7 {[%emt 0:00:00]} 49. Qb8 {[%emt 0:00:15]} Nf5 {[%emt 0:00:00]} 50. g4 {[%emt 0:00:24]} hxg4 {[%emt 0:00:00]} 51. hxg4 {[%emt 0:01:03]} Nxd4 {[%emt 0:00:00]} 52. Qh8 {[%emt 0:00:34]} Ne2+ {[%emt 0:00:00]} 53. Kf1 {[%emt 0:00:28]} Nxf4 {[%emt 0:00:00]} 54. Qh7+ {[%emt 0:03:05]} Ke8 {[%emt 0:00:00]} 55. Qh8+ {[%emt 0:00:05]} Kf7 {[%emt 0:00:00]} 56. Qh7+ {[%emt 0:00:04]} 1/2-1/2

[Event "CZE-ch U16 2020"]
[Site "Kouty nad Desnou"]
[Date "2020.03.08"]
[Round "2.4"]
[White "Janouch, Jachym Stepan"]
[Black "Nytra, Ondrej"]
[Result "0-1"]
[ECO "C44"]
[WhiteElo "1888"]
[BlackElo "2181"]
[Annotator "ChessBase"]
[PlyCount "62"]
[EventDate "2020.03.07"]
[EventCountry "CZE"]
[SourceTitle "playchess.com"]
[Source "ChessBase"]
[SourceQuality "1"]
[TimeControl "5400+30"]

1. e4 {[%emt 0:00:56]} e5 {[%emt 0:00:00]} 2. Nf3 {[%emt 0:00:44]} Nc6 {[%emt 0:00:00]} 3. d4 {[%emt 0:00:26]} exd4 {[%emt 0:00:00]} 4. Nxd4 {[%emt 0:00:08]} Nf6 {[%emt 0:00:00]} 5. Nxc6 {[%emt 0:00:11]} bxc6 {[%emt 0:00:00]} 6. Bd3 {[%emt 0:00:09]} d5 {[%emt 0:00:09]} 7. e5 {[%emt 0:02:29]} Ng4 {[%emt 0:00:11]} 8. O-O {[%emt 0:01:02]} Bc5 {[%emt 0:00:05]} 9. Bf4 {[%emt 0:01:07]} g5 {[%emt 0:00:17]} 10. Bg3 {[%emt 0:00:33]} h5 {[%emt 0:00:10]} 11. Be2 {[%emt 0:00:32]} Qe7 {[%emt 0:06:55]} 12. Nd2 {[%emt 0:01:45]} Be6 {[%emt 0:10:52]} 13. c4 {[%emt 0:07:56]} Rd8 {[%emt 0:09:11]} 14. h3 {[%emt 0:05:58]} h4 {[%emt 0:01:34]} 15. Bh2 {[%emt 0:05:02]} Nxh2 {[%emt 0:00:25]} 16. Kxh2 {[%emt 0:00:08]} dxc4 {[%emt 0:01:04]} 17. Qc2 {[%emt 0:02:51]} g4 {[%emt 0:02:25]} 18. Ne4 {[%emt 0:02:32]} gxh3 {[%emt 0:05:54]} 19. Nf6+ {[%emt 0:03:05]} Kf8 {[%emt 0:00:04]} 20. gxh3 {[%emt 0:01:22]} Rd4 {[%emt 0:01:19]} 21. f4 {[%emt 0:08:35]} Rh6 {[%emt 0:41:36]} 22. Rg1 {[%emt 0:03:06]} Rh8 {[%emt 0:00:11]} 23. Bf3 {[%emt 0:20:20]} Rxf4 {[%emt 0:03:31]} 24. Qg2 {[%emt 0:00:13]} Bxg1+ {[%emt 0:03:05]} 25. Rxg1 {[%emt 0:00:07]} Qd8 {[%emt 0:06:15]} 26. Bxc6 {[%emt 0:01:03]} Rf5 {[%emt 0:03:26]} 27. Qe2 {[%emt 0:16:22]} Rxf6 {[%emt 0:01:24]} 28. exf6 {[%emt 0:02:14]} Qd6+ {[%emt 0:00:09]} 29. Kh1 {[%emt 0:00:26]} Qxc6+ {[%emt 0:00:05]} 30. Rg2 {[%emt 0:00:04]} Rg8 {[%emt 0:00:24]} 31. Qd2 {[%emt 0:00:07]} Qxg2+ {[%emt 0:00:33]} 0-1